[Event "*** Titled Tuesday 3|2 Blitz"]
[Site "Chess.com"]
[Date "2016.06.07"]
[Round "2"]
[White "alturas_pacificas"]
[Black "flavettes"]
[Result "0-1"]
[WhiteElo "2169"]
[BlackElo "2495"]
[TimeControl "180+2"]
[EndTime "11:21:18 PDT"]
[Termination "flavettes won by resignation"]

1. d4 {[%clk 0:02:56.1]} 1... c5 {[%clk 0:03:01.5]} 2. d5 {[%clk 0:02:56.4]}
2... e6 {[%clk 0:03:02.6]} 3. Nc3 {[%clk 0:02:54.9]} 3... a6 {[%clk 0:03:03.3]}
4. a4 {[%clk 0:02:53.8]} 4... d6 {[%clk 0:03:02.6]} 5. e4 {[%clk 0:02:51.9]}
5... Ne7 {[%clk 0:03:03.2]} 6. Be2 {[%clk 0:02:49.5]} 6... Ng6 {[%clk
0:03:04.2]} 7. Nf3 {[%clk 0:02:36.9]} 7... Be7 {[%clk 0:03:03.9]} 8. O-O {[%clk
0:02:35.7]} 8... O-O {[%clk 0:03:04.7]} 9. Nd2 {[%clk 0:02:30.5]} 9... exd5
{[%clk 0:03:00.3]} 10. exd5 {[%clk 0:02:31.2]} 10... Nd7 {[%clk 0:03:01.2]} 11.
Nc4 {[%clk 0:02:27.6]} 11... Nde5 {[%clk 0:03:01.5]} 12. Nxe5 {[%clk 0:02:27.9]}
12... Nxe5 {[%clk 0:03:02.3]} 13. Bf4 {[%clk 0:02:09.5]} 13... Bf6 {[%clk
0:03:02.2]} 14. Re1 {[%clk 0:01:57.3]} 14... Re8 {[%clk 0:03:02.1]} 15. h3
{[%clk 0:01:48.3]} 15... Bf5 {[%clk 0:02:59.7]} 16. Qd2 {[%clk 0:01:30.5]} 16...
h6 {[%clk 0:02:57.7]} 17. Bf1 {[%clk 0:01:18.5]} 17... Rb8 {[%clk 0:02:43.7]}
18. Rad1 {[%clk 0:01:15.6]} 18... Qd7 {[%clk 0:02:44.1]} 19. Kh1 {[%clk
0:01:10.4]} 19... b5 {[%clk 0:02:44]} 20. axb5 {[%clk 0:01:01.8]} 20... axb5
{[%clk 0:02:45.9]} 21. Ne4 {[%clk 0:00:52.7]} 21... Bxe4 {[%clk 0:02:46.5]} 22.
Rxe4 {[%clk 0:00:53.5]} 22... Ng6 {[%clk 0:02:34.7]} 23. Rxe8+ {[%clk
0:00:52.4]} 23... Rxe8 {[%clk 0:02:34.3]} 24. c3 {[%clk 0:00:52]} 24... Be5
{[%clk 0:02:20.1]} 25. Bxe5 {[%clk 0:00:47.9]} 25... Rxe5 {[%clk 0:02:20.8]} 26.
Qd3 {[%clk 0:00:47.2]} 26... c4 {[%clk 0:02:21.4]} 27. Qd4 {[%clk 0:00:47.6]}
27... Ne7 {[%clk 0:02:21.4]} 28. Qb6 {[%clk 0:00:26.5]} 28... Nxd5 {[%clk
0:02:17.4]} 29. Qb8+ {[%clk 0:00:25.1]} 29... Kh7 {[%clk 0:02:18.2]} 30. Qa8
{[%clk 0:00:23.5]} 30... Nf6 {[%clk 0:02:14.8]} 31. g3 {[%clk 0:00:23.5]} 31...
Ne4 {[%clk 0:02:12.9]} 32. Kg1 {[%clk 0:00:23.4]} 32... Qf5 {[%clk 0:02:06.7]}
33. Qa7 {[%clk 0:00:23.5]} 33... Rc5 {[%clk 0:02:07.3]} 34. f4 {[%clk
0:00:19.7]} 34... Nxg3 {[%clk 0:02:05.6]} 35. Qe7 {[%clk 0:00:19.2]} 35... Qxf4
{[%clk 0:01:56.5]} 36. Qxd6 {[%clk 0:00:18.7]} 36... Re5 {[%clk 0:01:55.9]} 37.
Qd2 {[%clk 0:00:16.2]} 37... Re3 {[%clk 0:01:51.4]} 38. Qf2 {[%clk 0:00:15.6]}
38... Rf3 {[%clk 0:01:50.9]} 39. Qc2+ {[%clk 0:00:16.6]} 39... f5 {[%clk
0:01:49.8]} 40. Bg2 {[%clk 0:00:17.3]} 40... Qe3+ {[%clk 0:01:45.1]} 41. Qf2
{[%clk 0:00:18.4]} 0-1

[Event "*** Titled Tuesday 3|2 Blitz"]
[Site "Chess.com"]
[Date "2016.06.07"]
[Round "2"]
[White "Journey_to_GrandMaster_YT"]
[Black "Andrejkin"]
[Result "1/2-1/2"]
[WhiteElo "2340"]
[BlackElo "2173"]
[TimeControl "180+2"]
[EndTime "11:21:28 PDT"]
[Termination "Game drawn by repetition"]

1. d4 {[%clk 0:03:01.9]} 1... Nf6 {[%clk 0:03:00.4]} 2. Nf3 {[%clk 0:03:01.1]}
2... e6 {[%clk 0:03:02.3]} 3. c4 {[%clk 0:03:01.5]} 3... b6 {[%clk 0:03:03]} 4.
Nc3 {[%clk 0:03:02]} 4... Bb7 {[%clk 0:03:02.6]} 5. e3 {[%clk 0:02:59.9]} 5...
Be7 {[%clk 0:03:02.5]} 6. Bd3 {[%clk 0:03:00.6]} 6... O-O {[%clk 0:03:04.3]} 7.
O-O {[%clk 0:02:56.4]} 7... d5 {[%clk 0:03:06.2]} 8. cxd5 {[%clk 0:02:54.2]}
8... exd5 {[%clk 0:03:08.1]} 9. Ne5 {[%clk 0:02:54.4]} 9... c5 {[%clk
0:02:59.5]} 10. f4 {[%clk 0:02:44.4]} 10... Nc6 {[%clk 0:02:59.5]} 11. Bc2
{[%clk 0:02:41.6]} 11... c4 {[%clk 0:02:58.1]} 12. Qf3 {[%clk 0:02:34]} 12... a6
{[%clk 0:02:56.8]} 13. Qh3 {[%clk 0:02:31.3]} 13... b5 {[%clk 0:02:55.7]} 14. g4
{[%clk 0:02:30.6]} 14... g6 {[%clk 0:02:54.4]} 15. Rf3 {[%clk 0:02:05.7]} 15...
b4 {[%clk 0:02:31.4]} 16. Ne2 {[%clk 0:02:03.1]} 16... a5 {[%clk 0:02:32.7]} 17.
g5 {[%clk 0:01:53.6]} 17... Ne4 {[%clk 0:02:29.6]} 18. Qh6 {[%clk 0:01:43.2]}
18... Nxe5 {[%clk 0:02:26.7]} 19. dxe5 {[%clk 0:01:41.6]} 19... Bc8 {[%clk
0:02:19.3]} 20. Nd4 {[%clk 0:01:30.8]} 20... c3 {[%clk 0:02:16.7]} 21. bxc3
{[%clk 0:01:07.6]} 21... bxc3 {[%clk 0:02:18.6]} 22. a4 {[%clk 0:01:03.6]} 22...
Bc5 {[%clk 0:02:12.9]} 23. Kg2 {[%clk 0:00:34.2]} 23... Bxd4 {[%clk 0:01:46.2]}
24. exd4 {[%clk 0:00:34.4]} 24... Nd2 {[%clk 0:01:46.7]} 25. f5 {[%clk
0:00:17.6]} 25... Bxf5 {[%clk 0:01:40.6]} 26. Rxf5 {[%clk 0:00:16]} 26... Qc8
{[%clk 0:01:37.4]} 27. Rf4 {[%clk 0:00:15.8]} 27... Qc4 {[%clk 0:01:37.3]} 28.
Rf2 {[%clk 0:00:08.9]} 28... Qxd4 {[%clk 0:01:35.4]} 29. Bxd2 {[%clk 0:00:06.8]}
29... cxd2 {[%clk 0:01:37.3]} 30. Rd1 {[%clk 0:00:07.4]} 30... Rac8 {[%clk
0:01:35]} 31. Rdxd2 {[%clk 0:00:08.4]} 31... Qg4+ {[%clk 0:01:32.5]} 32. Kh1
{[%clk 0:00:08.9]} 32... Rxc2 {[%clk 0:01:28.4]} 33. Rxc2 {[%clk 0:00:09.2]}
33... Qd1+ {[%clk 0:01:29.3]} 34. Kg2 {[%clk 0:00:10]} 34... Qg4+ {[%clk
0:01:28]} 35. Kf1 {[%clk 0:00:10.8]} 35... Qd1+ {[%clk 0:01:29.3]} 36. Kg2
{[%clk 0:00:11.9]} 36... Qg4+ {[%clk 0:01:27.8]} 37. Kh1 {[%clk 0:00:12.8]}
37... Qd1+ {[%clk 0:01:27.6]} 38. Kg2 {[%clk 0:00:13.9]} 1/2-1/2

[Event "*** Titled Tuesday 3|2 Blitz"]
[Site "Chess.com"]
[Date "2016.06.07"]
[Round "2"]
[White "bilelou"]
[Black "chess960now"]
[Result "0-1"]
[WhiteElo "2143"]
[BlackElo "1954"]
[TimeControl "180+2"]
[EndTime "11:21:31 PDT"]
[Termination "chess960now won by checkmate"]

1. c4 {[%clk 0:02:47]} 1... e5 {[%clk 0:02:54.8]} 2. Nc3 {[%clk 0:02:45.9]} 2...
Nf6 {[%clk 0:02:54.6]} 3. g3 {[%clk 0:02:45.7]} 3... d5 {[%clk 0:02:55.2]} 4.
cxd5 {[%clk 0:02:46.4]} 4... Nxd5 {[%clk 0:02:56]} 5. Bg2 {[%clk 0:02:48]} 5...
Nb6 {[%clk 0:02:52.5]} 6. e3 {[%clk 0:02:49.6]} 6... Nc6 {[%clk 0:02:51.5]} 7.
Nge2 {[%clk 0:02:51.2]} 7... Be7 {[%clk 0:02:49.8]} 8. O-O {[%clk 0:02:52.7]}
8... O-O {[%clk 0:02:48.1]} 9. f4 {[%clk 0:02:53.7]} 9... f6 {[%clk 0:02:04]}
10. b3 {[%clk 0:02:51.8]} 10... Bf5 {[%clk 0:01:39.5]} 11. a4 {[%clk 0:02:38.7]}
11... a5 {[%clk 0:01:26.9]} 12. h3 {[%clk 0:02:33]} 12... Rb8 {[%clk 0:01:08.2]}
13. Kh2 {[%clk 0:02:31]} 13... Nb4 {[%clk 0:01:03.1]} 14. Ba3 {[%clk 0:02:26.8]}
14... Bc2 {[%clk 0:01:00.9]} 15. Qc1 {[%clk 0:02:20.5]} 15... Bxb3 {[%clk
0:00:56.4]} 16. d4 {[%clk 0:02:14.7]} 16... Nc4 {[%clk 0:00:40.3]} 17. Bxb4
{[%clk 0:02:06.7]} 17... axb4 {[%clk 0:00:23.8]} 18. Nd5 {[%clk 0:01:58.9]}
18... c6 {[%clk 0:00:18.9]} 19. Nxe7+ {[%clk 0:01:54.1]} 19... Qxe7 {[%clk
0:00:19.7]} 20. Rb1 {[%clk 0:01:52.2]} 20... Na5 {[%clk 0:00:14.3]} 21. fxe5
{[%clk 0:01:52.1]} 21... fxe5 {[%clk 0:00:14.9]} 22. dxe5 {[%clk 0:01:34.6]}
22... Qxe5 {[%clk 0:00:14.7]} 23. Rf4 {[%clk 0:01:31.5]} 23... Rxf4 {[%clk
0:00:13.7]} 24. gxf4 {[%clk 0:01:31.6]} 24... Qe6 {[%clk 0:00:13.2]} 25. Nd4
{[%clk 0:01:30.3]} 25... Qf7 {[%clk 0:00:11]} 26. Qc5 {[%clk 0:01:27.8]} 26...
b6 {[%clk 0:00:10.5]} 27. Qxb4 {[%clk 0:01:28.5]} 27... Bd5 {[%clk 0:00:09.1]}
28. Bxd5 {[%clk 0:01:28.5]} 28... Qxd5 {[%clk 0:00:09]} 29. Qe7 {[%clk 0:01:27]}
29... c5 {[%clk 0:00:08.7]} 30. Rg1 {[%clk 0:01:27]} 30... Qf7 {[%clk 0:00:07]}
31. Qd6 {[%clk 0:01:21]} 31... Re8 {[%clk 0:00:07.1]} 32. Nf3 {[%clk 0:01:21.1]}
32... Rxe3 {[%clk 0:00:07.1]} 33. Ne5 {[%clk 0:01:22.3]} 33... Qxf4+ {[%clk
0:00:07]} 34. Kh1 {[%clk 0:01:20.3]} 34... Rxh3+ {[%clk 0:00:08]} 35. Kg2 {[%clk
0:01:20.6]} 35... Rg3+ {[%clk 0:00:09]} 36. Kh1 {[%clk 0:01:21.8]} 36... Qh4#
{[%clk 0:00:10.1]} 0-1

[Event "*** Titled Tuesday 3|2 Blitz"]
[Site "Chess.com"]
[Date "2016.06.07"]
[Round "2"]
[White "Mvpag"]
[Black "Er_is_geen_hoop_meer"]
[Result "0-1"]
[WhiteElo "2132"]
[BlackElo "2335"]
[TimeControl "180+2"]
[EndTime "11:21:43 PDT"]
[Termination "Er_is_geen_hoop_meer won by checkmate"]

1. d4 {[%clk 0:03:01.9]} 1... Nf6 {[%clk 0:03:00.2]} 2. Nf3 {[%clk 0:03:02.7]}
2... g6 {[%clk 0:03:02.1]} 3. c3 {[%clk 0:03:03]} 3... Bg7 {[%clk 0:03:04]} 4.
h3 {[%clk 0:03:04.5]} 4... O-O {[%clk 0:03:05.9]} 5. Bf4 {[%clk 0:03:06.1]} 5...
c5 {[%clk 0:03:07.5]} 6. Nbd2 {[%clk 0:03:07.5]} 6... d5 {[%clk 0:03:09.4]} 7.
e3 {[%clk 0:03:08.2]} 7... Nc6 {[%clk 0:03:11.3]} 8. Bd3 {[%clk 0:03:09.3]} 8...
Re8 {[%clk 0:03:11]} 9. O-O {[%clk 0:03:09.8]} 9... Nd7 {[%clk 0:03:12.9]} 10.
Bc2 {[%clk 0:02:47.3]} 10... f6 {[%clk 0:03:13.7]} 11. e4 {[%clk 0:02:47.8]}
11... e5 {[%clk 0:03:12.1]} 12. dxe5 {[%clk 0:02:47]} 12... Ndxe5 {[%clk
0:03:09.6]} 13. exd5 {[%clk 0:02:42.1]} 13... Nxf3+ {[%clk 0:03:10.1]} 14. Nxf3
{[%clk 0:02:42]} 14... Ne7 {[%clk 0:03:11.3]} 15. c4 {[%clk 0:02:27.4]} 15...
Nf5 {[%clk 0:03:09.2]} 16. Rb1 {[%clk 0:02:22.1]} 16... Nd6 {[%clk 0:03:10.2]}
17. b3 {[%clk 0:02:18.6]} 17... Bf5 {[%clk 0:03:09.5]} 18. Bxf5 {[%clk
0:02:17.8]} 18... Nxf5 {[%clk 0:03:11.4]} 19. Re1 {[%clk 0:02:17.8]} 19... Qd7
{[%clk 0:03:12.7]} 20. Qd2 {[%clk 0:02:13.9]} 20... g5 {[%clk 0:03:13.3]} 21.
Bh2 {[%clk 0:01:53.3]} 21... h5 {[%clk 0:03:14.2]} 22. Qd3 {[%clk 0:01:25.2]}
22... g4 {[%clk 0:03:13.4]} 23. hxg4 {[%clk 0:01:24.4]} 23... hxg4 {[%clk
0:03:15.3]} 24. Nd2 {[%clk 0:01:22.9]} 24... Nd4 {[%clk 0:03:15.8]} 25. Ne4
{[%clk 0:01:17.6]} 25... b6 {[%clk 0:03:16.1]} 26. Bf4 {[%clk 0:01:13.6]} 26...
f5 {[%clk 0:03:13.2]} 27. Ng5 {[%clk 0:01:10.6]} 27... Bf6 {[%clk 0:03:11.3]}
28. Qd2 {[%clk 0:00:57.1]} 28... Rxe1+ {[%clk 0:03:07.9]} 29. Rxe1 {[%clk
0:00:56.3]} 29... Re8 {[%clk 0:03:09.8]} 30. Rxe8+ {[%clk 0:00:55.7]} 30... Qxe8
{[%clk 0:03:11.7]} 31. Kf1 {[%clk 0:00:52.5]} 31... Qh5 {[%clk 0:03:07.3]} 32.
Kg1 {[%clk 0:00:45.9]} 32... Qe8 {[%clk 0:03:00.7]} 33. Qe3 {[%clk 0:00:44.2]}
33... Qxe3 {[%clk 0:02:43.4]} 34. fxe3 {[%clk 0:00:41.1]} 34... Nc2 {[%clk
0:02:40.7]} 35. d6 {[%clk 0:00:32.4]} 35... Nb4 {[%clk 0:02:41.6]} 36. d7 {[%clk
0:00:30.6]} 36... Nc6 {[%clk 0:02:36.1]} 37. Ne6 {[%clk 0:00:29.2]} 37... Kf7
{[%clk 0:02:35.8]} 38. Ng5+ {[%clk 0:00:16]} 38... Ke7 {[%clk 0:02:36.6]} 39.
Nh7 {[%clk 0:00:14.5]} 39... Bc3 {[%clk 0:02:32.7]} 40. Bg5+ {[%clk 0:00:11.7]}
40... Kxd7 {[%clk 0:02:33.8]} 41. Nf8+ {[%clk 0:00:12.9]} 41... Kd6 {[%clk
0:02:34.6]} 42. Ng6 {[%clk 0:00:12.4]} 42... Nb4 {[%clk 0:02:34.5]} 43. a3
{[%clk 0:00:12.9]} 43... Nc2 {[%clk 0:02:35.2]} 44. Bf4+ {[%clk 0:00:14]} 44...
Ke6 {[%clk 0:02:35.5]} 45. Nf8+ {[%clk 0:00:15.2]} 45... Kf7 {[%clk 0:02:36.7]}
46. Nd7 {[%clk 0:00:16.3]} 46... Nxa3 {[%clk 0:02:38.6]} 47. Nb8 {[%clk
0:00:15]} 47... Nb1 {[%clk 0:02:37.3]} 48. Nc6 {[%clk 0:00:16.6]} 48... a6
{[%clk 0:02:36.5]} 49. Na7 {[%clk 0:00:18.5]} 49... Nd2 {[%clk 0:02:35.6]} 50.
Nc8 {[%clk 0:00:19.4]} 50... Ba5 {[%clk 0:02:36.8]} 51. Bc7 {[%clk 0:00:19.1]}
51... Nxb3 {[%clk 0:02:37.4]} 52. Bxb6 {[%clk 0:00:20.3]} 52... Bxb6 {[%clk
0:02:38]} 53. Nxb6 {[%clk 0:00:21.6]} 53... a5 {[%clk 0:02:39.9]} 54. Kf2 {[%clk
0:00:22.5]} 54... Ke6 {[%clk 0:02:40.9]} 55. Ke2 {[%clk 0:00:23.8]} 55... Ke5
{[%clk 0:02:41.8]} 56. Kd3 {[%clk 0:00:24.6]} 56... Nc1+ {[%clk 0:02:43.1]} 57.
Kc2 {[%clk 0:00:25.2]} 57... Ne2 {[%clk 0:02:44.1]} 58. Nd7+ {[%clk 0:00:25.7]}
58... Ke4 {[%clk 0:02:44.2]} 59. Nxc5+ {[%clk 0:00:26.4]} 59... Kxe3 {[%clk
0:02:45.8]} 60. Nb3 {[%clk 0:00:26.8]} 60... Nd4+ {[%clk 0:02:46.5]} 61. Kc3
{[%clk 0:00:26.2]} 61... Nxb3 {[%clk 0:02:47.8]} 62. Kxb3 {[%clk 0:00:27.5]}
62... Kd4 {[%clk 0:02:49.7]} 63. g3 {[%clk 0:00:26.3]} 63... f4 {[%clk
0:02:50.1]} 64. gxf4 {[%clk 0:00:27]} 64... g3 {[%clk 0:02:52]} 65. f5 {[%clk
0:00:28.1]} 65... g2 {[%clk 0:02:53.9]} 66. f6 {[%clk 0:00:29.7]} 66... g1=Q
{[%clk 0:02:55.8]} 67. f7 {[%clk 0:00:31.3]} 67... Qb1+ {[%clk 0:02:57.5]} 68.
Ka4 {[%clk 0:00:32.1]} 68... Qb4# {[%clk 0:02:58.4]} 0-1

[Event "*** Titled Tuesday 3|2 Blitz"]
[Site "Chess.com"]
[Date "2016.06.07"]
[Round "2"]
[White "1stSecond"]
[Black "hansen"]
[Result "0-1"]
[WhiteElo "2561"]
[BlackElo "2558"]
[TimeControl "180+2"]
[EndTime "11:22:08 PDT"]
[Termination "hansen won by checkmate"]

1. d4 {[%clk 0:02:56.5]} 1... Nf6 {[%clk 0:02:59.8]} 2. c4 {[%clk 0:02:58.2]}
2... g6 {[%clk 0:02:59.9]} 3. Nc3 {[%clk 0:02:59.8]} 3... d5 {[%clk 0:03:00.6]}
4. g3 {[%clk 0:02:56.1]} 4... dxc4 {[%clk 0:02:58.4]} 5. Qa4+ {[%clk 0:02:54.6]}
5... c6 {[%clk 0:02:58.3]} 6. Qxc4 {[%clk 0:02:55.3]} 6... Bg7 {[%clk
0:02:59.1]} 7. Bg2 {[%clk 0:02:56]} 7... O-O {[%clk 0:02:58]} 8. e3 {[%clk
0:02:57.4]} 8... Nbd7 {[%clk 0:02:43.6]} 9. Nge2 {[%clk 0:02:58.2]} 9... e5
{[%clk 0:02:44.1]} 10. O-O {[%clk 0:02:57.6]} 10... Qe7 {[%clk 0:02:44.7]} 11.
a4 {[%clk 0:02:55.7]} 11... Nb6 {[%clk 0:02:38.6]} 12. Qd3 {[%clk 0:02:52.7]}
12... Be6 {[%clk 0:02:34.2]} 13. a5 {[%clk 0:02:49.1]} 13... Bc4 {[%clk
0:02:24]} 14. Qd1 {[%clk 0:02:50.3]} 14... exd4 {[%clk 0:02:21.5]} 15. Qxd4
{[%clk 0:02:27]} 15... Nfd5 {[%clk 0:02:04.7]} 16. Nxd5 {[%clk 0:02:26]} 16...
cxd5 {[%clk 0:02:02.1]} 17. Qd1 {[%clk 0:02:19.5]} 17... Nd7 {[%clk 0:02:01]}
18. Bxd5 {[%clk 0:02:16.9]} 18... Ba6 {[%clk 0:01:54]} 19. Re1 {[%clk
0:02:11.1]} 19... Nc5 {[%clk 0:01:49.6]} 20. Nf4 {[%clk 0:01:48.2]} 20... Rad8
{[%clk 0:01:49.7]} 21. e4 {[%clk 0:01:48.3]} 21... Kh8 {[%clk 0:01:36.3]} 22.
Qc2 {[%clk 0:01:45.7]} 22... Rc8 {[%clk 0:01:31.8]} 23. Qb1 {[%clk 0:01:32.3]}
23... f5 {[%clk 0:01:15.2]} 24. Be3 {[%clk 0:01:27.6]} 24... fxe4 {[%clk
0:01:05.9]} 25. Bxc5 {[%clk 0:01:28.5]} 25... Qxc5 {[%clk 0:01:05.4]} 26. Qxe4
{[%clk 0:01:15.1]} 26... g5 {[%clk 0:01:00.3]} 27. Nh3 {[%clk 0:00:55.6]} 27...
h6 {[%clk 0:01:00.5]} 28. Bxb7 {[%clk 0:00:43.6]} 28... Rce8 {[%clk 0:00:51]}
29. Qxe8 {[%clk 0:00:42.4]} 29... Bxb7 {[%clk 0:00:51.7]} 30. Qd7 {[%clk
0:00:37.8]} 30... Bc6 {[%clk 0:00:43]} 31. Qd2 {[%clk 0:00:28.6]} 31... Qf5
{[%clk 0:00:42.4]} 32. Rac1 {[%clk 0:00:27.8]} 32... Ba8 {[%clk 0:00:40.5]} 33.
Nf4 {[%clk 0:00:21.3]} 33... gxf4 {[%clk 0:00:39.9]} 34. Re7 {[%clk 0:00:21.1]}
34... Qh3 {[%clk 0:00:34.7]} 35. f3 {[%clk 0:00:19.1]} 35... fxg3 {[%clk
0:00:35.6]} 36. Rcc7 {[%clk 0:00:19.4]} 36... gxh2+ {[%clk 0:00:29.5]} 37. Qxh2
{[%clk 0:00:21.3]} 37... Bd4+ {[%clk 0:00:30]} 38. Kh1 {[%clk 0:00:20.1]} 38...
Bxf3# {[%clk 0:00:30.2]} 0-1

[Event "*** Titled Tuesday 3|2 Blitz"]
[Site "Chess.com"]
[Date "2016.06.07"]
[Round "2"]
[White "bugsbunny444"]
[Black "PowerThinking2650"]
[Result "1-0"]
[WhiteElo "2362"]
[BlackElo "2192"]
[TimeControl "180+2"]
[EndTime "11:22:13 PDT"]
[Termination "bugsbunny444 won by resignation"]

1. Nf3 {[%clk 0:01:11.6]} 1... Nf6 {[%clk 0:02:58.7]} 2. c4 {[%clk 0:01:10.5]}
2... g6 {[%clk 0:02:59.4]} 3. b4 {[%clk 0:01:11.2]} 3... Bg7 {[%clk 0:03:00.9]}
4. Bb2 {[%clk 0:01:12.9]} 4... O-O {[%clk 0:03:01.9]} 5. g3 {[%clk 0:01:14.4]}
5... d5 {[%clk 0:03:03]} 6. cxd5 {[%clk 0:01:15.4]} 6... Qxd5 {[%clk 0:03:04]}
7. Bg2 {[%clk 0:01:16.4]} 7... Qh5 {[%clk 0:03:04.9]} 8. O-O {[%clk 0:01:16.3]}
8... Bh3 {[%clk 0:03:04.6]} 9. d3 {[%clk 0:01:15]} 9... Rd8 {[%clk 0:03:01.5]}
10. Nbd2 {[%clk 0:01:15.3]} 10... a5 {[%clk 0:02:51.1]} 11. a3 {[%clk
0:00:59.3]} 11... Nc6 {[%clk 0:02:33.6]} 12. Qb3 {[%clk 0:00:59.7]} 12... a4
{[%clk 0:02:17.1]} 13. Qa2 {[%clk 0:00:55.5]} 13... e6 {[%clk 0:02:07.9]} 14.
Rac1 {[%clk 0:00:47.1]} 14... Rd7 {[%clk 0:01:48.9]} 15. Rc5 {[%clk 0:00:41.9]}
15... Qh6 {[%clk 0:01:37.4]} 16. Rfc1 {[%clk 0:00:24.7]} 16... Bxg2 {[%clk
0:01:37]} 17. Kxg2 {[%clk 0:00:26.6]} 17... Rc8 {[%clk 0:01:24.2]} 18. Ng5
{[%clk 0:00:17.3]} 18... Ng4 {[%clk 0:01:19.1]} 19. h3 {[%clk 0:00:18.6]} 19...
Bxb2 {[%clk 0:01:13.1]} 20. Qxb2 {[%clk 0:00:19.3]} 20... Nge5 {[%clk
0:01:13.6]} 21. Rxe5 {[%clk 0:00:17.6]} 21... Nxe5 {[%clk 0:01:10.4]} 22. Qxe5
{[%clk 0:00:18.5]} 22... Rd5 {[%clk 0:01:11.5]} 23. Nxf7 {[%clk 0:00:09.5]}
23... Rxe5 {[%clk 0:00:23.3]} 24. Nxh6+ {[%clk 0:00:09.9]} 24... Kg7 {[%clk
0:00:25.2]} 25. Ng4 {[%clk 0:00:08.5]} 25... Rxe2 {[%clk 0:00:27.1]} 26. Rc2
{[%clk 0:00:06.7]} 26... c6 {[%clk 0:00:26.9]} 27. Kf1 {[%clk 0:00:07.4]} 27...
Rxd2 {[%clk 0:00:21.6]} 28. Rxd2 {[%clk 0:00:08.5]} 28... Rd8 {[%clk 0:00:22.6]}
29. d4 {[%clk 0:00:08.1]} 29... h5 {[%clk 0:00:22.5]} 30. Ne3 {[%clk 0:00:08.1]}
30... Kf6 {[%clk 0:00:24.1]} 31. Ke2 {[%clk 0:00:09.4]} 31... e5 {[%clk
0:00:25.4]} 32. dxe5+ {[%clk 0:00:10.4]} 32... Ke7 {[%clk 0:00:25]} 33. Rxd8
{[%clk 0:00:11]} 1-0

[Event "*** Titled Tuesday 3|2 Blitz"]
[Site "Chess.com"]
[Date "2016.06.07"]
[Round "2"]
[White "Bentery"]
[Black "ItalianMachine"]
[Result "1-0"]
[WhiteElo "2442"]
[BlackElo "2321"]
[TimeControl "180+2"]
[EndTime "11:22:17 PDT"]
[Termination "Bentery won by resignation"]

1. Nf3 {[%clk 0:03:01.4]} 1... Nf6 {[%clk 0:02:59.4]} 2. g3 {[%clk 0:03:00.9]}
2... e6 {[%clk 0:03:00.1]} 3. Bg2 {[%clk 0:03:01.7]} 3... d5 {[%clk 0:02:58.9]}
4. O-O {[%clk 0:02:59.4]} 4... Be7 {[%clk 0:02:59.8]} 5. c4 {[%clk 0:03:00.7]}
5... O-O {[%clk 0:03:00.7]} 6. d4 {[%clk 0:03:02.3]} 6... b6 {[%clk 0:02:59.9]}
7. cxd5 {[%clk 0:03:00.6]} 7... exd5 {[%clk 0:03:00.2]} 8. Nc3 {[%clk
0:03:01.7]} 8... Bb7 {[%clk 0:03:01.5]} 9. Ne5 {[%clk 0:03:02.9]} 9... Nbd7
{[%clk 0:03:01.6]} 10. Qa4 {[%clk 0:03:03.6]} 10... Nxe5 {[%clk 0:02:57.9]} 11.
dxe5 {[%clk 0:03:01.9]} 11... Nd7 {[%clk 0:02:59.5]} 12. Nxd5 {[%clk 0:02:52.1]}
12... Nc5 {[%clk 0:03:00.7]} 13. Qc4 {[%clk 0:02:52.8]} 13... c6 {[%clk
0:02:45.6]} 14. Nxe7+ {[%clk 0:02:53]} 14... Qxe7 {[%clk 0:02:46.9]} 15. Bf4
{[%clk 0:02:28.6]} 15... g5 {[%clk 0:02:45.1]} 16. Be3 {[%clk 0:02:28]} 16...
Qxe5 {[%clk 0:02:46.2]} 17. Rfd1 {[%clk 0:02:01.7]} 17... Ne6 {[%clk 0:02:42.3]}
18. Rd7 {[%clk 0:01:55.7]} 18... Rab8 {[%clk 0:02:29.4]} 19. Rad1 {[%clk
0:01:38]} 19... Qxb2 {[%clk 0:02:08.1]} 20. h4 {[%clk 0:01:30.1]} 20... Qg7
{[%clk 0:01:50.9]} 21. hxg5 {[%clk 0:01:29.6]} 21... Rfd8 {[%clk 0:01:36.6]} 22.
Bh3 {[%clk 0:01:02.4]} 22... Rxd7 {[%clk 0:01:34.8]} 23. Rxd7 {[%clk 0:01:04.3]}
23... Nf8 {[%clk 0:01:32.3]} 24. Rc7 {[%clk 0:00:58.6]} 24... c5 {[%clk
0:01:27.6]} 25. f3 {[%clk 0:00:54.6]} 25... Re8 {[%clk 0:00:53.2]} 26. Bf4
{[%clk 0:00:47.5]} 26... Ba8 {[%clk 0:00:45.6]} 27. Rxa7 {[%clk 0:00:48.5]}
27... Ng6 {[%clk 0:00:39.8]} 28. Bd7 {[%clk 0:00:40.1]} 28... Rf8 {[%clk
0:00:31.3]} 29. Bd6 {[%clk 0:00:37.8]} 29... Qa1+ {[%clk 0:00:21.5]} 30. Kf2
{[%clk 0:00:36.5]} 30... Ne5 {[%clk 0:00:22.2]} 31. Qf4 {[%clk 0:00:32.4]} 31...
Nxd7 {[%clk 0:00:18.3]} 32. Bxf8 {[%clk 0:00:31.4]} 32... Bc6 {[%clk 0:00:13.8]}
33. Bh6 {[%clk 0:00:24.5]} 33... Qh1 {[%clk 0:00:14.4]} 34. Rxd7 {[%clk
0:00:23.3]} 34... Qh2+ {[%clk 0:00:13.2]} 35. Ke1 {[%clk 0:00:24.8]} 35... Qg1+
{[%clk 0:00:14.4]} 36. Kd2 {[%clk 0:00:25]} 1-0